bitfinex-derivatives/quotes_SOLF0:USTF0_20260105
["timestamp","ask_amount","ask_price","bid_price","bid_amount"]
[1767593202037,93.9917,135.38,135.31,0.39711202]
[1767593214547,95.59367512,135.38,135.31,0.39711202]
[1767593215440,88.94197512,135.38,135.32,0.40986372]
[1767593215649,8.25277512,135.4,135.32,0.40986372]
[1767593215847,6.6508,135.4,135.32,0.40986372]
[1767593216146,8.25277512,135.4,135.32,0.40986372]
[1767593216542,8.25277512,135.4,135.32,7.06416372]
[1767593217646,1.60197512,135.4,135.34,0.40986372]
[1767593217942,87.3,135.41,135.34,0.40986372]
[1767593219146,0.05338379,135.39,135.34,0.40986372]
[1767593219346,0.05338379,135.39,135.36,0.40986372]
[1767593219545,87.3,135.44,135.36,0.40986372]
[1767593219750,88.90197512,135.44,135.36,0.40986372]
[1767593220142,1.60197512,135.42,135.34,0.40986372]
[1767593220848,1.60197512,135.4,135.37,0.05019963]
[1767593221151,1.60197512,135.4,135.32,0.42809928]
[1767593221351,1.60197512,135.38,135.32,0.42809928]
[1767593225951,8.25397512,135.38,135.3,0.42809928]
[1767593227050,1.60197512,135.36,135.3,0.42809928]
[1767593227756,6.652,135.38,135.3,0.42809928]
[1767593227958,1.60197512,135.37,135.3,0.42809928]
[1767593232651,1.60197512,135.37,135.3,14.13599648]
[1767593232851,1.60197512,135.37,135.3,7.08349928]
[1767593233950,1.60197512,135.37,135.31,0.42809928]
[1767593234251,1.60197512,135.39,135.32,0.42809928]
[1767593234451,6.6508,135.4,135.32,0.42809928]
[1767593234452,8.25277512,135.4,135.32,0.42809928]
[1767593235054,1.60197512,135.4,135.34,0.42809928]
[1767593235258,95.55167512,135.42,135.34,0.42809928]
[1767593235565,87.3,135.42,135.34,0.42809928]
[1767593235751,0.04921611,135.38,135.34,14.13599648]
[1767593235951,88.90197512,135.42,135.35,0.42809928]
[1767593236151,88.90197512,135.42,135.37,0.0508756]
[1767593236452,1.60197512,135.43,135.37,0.0508756]
[1767593236654,6.6489,135.44,135.37,0.0508756]
[1767593236860,1.60197512,135.43,135.35,0.42809928]
[1767593237053,1.60197512,135.43,135.35,2.0300744]
[1767593237248,1.60197512,135.43,135.39,0.05488398]
[1767593237656,6.6489,135.44,135.39,0.05488398]
[1767593241564,8.25087512,135.44,135.39,0.05488398]
[1767593244570,6.6489,135.44,135.39,0.05488398]
[1767593244766,8.25087512,135.44,135.39,0.05488398]
[1767593245465,87.3,135.46,135.39,0.05488398]
[1767593245466,6.6485,135.45,135.39,0.05488398]
[1767593246069,1.60197512,135.44,135.39,0.05488398]
[1767593246863,1.60197512,135.44,135.34,0.42809928]
[1767593246864,6.6493,135.43,135.34,0.42809928]
[1767593247065,88.88197512,135.42,135.33,7.08189928]
[1767593247268,88.88197512,135.42,135.34,0.42809928]
[1767593247573,88.88197512,135.43,135.35,0.42809928]
[1767593249573,95.53127512,135.43,135.35,0.42809928]
[1767593250570,1.60197512,135.41,135.34,6.6532]
[1767593250769,1.60197512,135.41,135.33,0.4118918]
[1767593253378,1.60197512,135.41,135.33,7.0657918]
[1767593254780,1.60197512,135.41,135.34,0.4118918]
[1767593257380,6.6498,135.42,135.34,0.4118918]
[1767593257681,88.88197512,135.43,135.35,0.4118918]
[1767593258573,88.88197512,135.43,135.35,7.0647918]
[1767593259491,87.28,135.43,135.35,7.0647918]
[1767593260194,87.28,135.43,135.35,8.66676692]
[1767593262496,93.9293,135.43,135.35,8.66676692]
[1767593267199,93.9293,135.43,135.35,7.0647918]
[1767593270004,1.60197512,135.42,135.35,7.0647918]
[1767593270303,88.88197512,135.43,135.37,0.4118918]
[1767593270506,1.60197512,135.46,135.38,0.4118918]
[1767593270702,87.26,135.47,135.38,0.4118918]
[1767593270903,88.86197512,135.47,135.38,0.4118918]
[1767593271705,95.50927512,135.47,135.4,0.42977987]
[1767593273003,1.60197512,135.45,135.36,2.03175499]
[1767593273195,190.6641,135.47,135.36,2.03175499]
[1767593273196,1.60197512,135.43,135.36,0.42977987]
[1767593274602,6.6488,135.44,135.36,0.42977987]
[1767593276713,6.6488,135.44,135.36,7.08207987]
[1767593277306,9.14920492,135.46,135.36,7.08207987]
[1767593279311,6.6482,135.45,135.36,7.08207987]
[1767593280516,93.9074,135.47,135.37,0.42977987]
[1767593281417,6.6478,135.46,135.38,6.6514]
[1767593282810,2.50120492,135.46,135.37,0.42977987]
[1767593283011,2.50120492,135.44,135.35,0.43012553]
[1767593284621,6.6492,135.43,135.35,7.08302553]
[1767593286023,9.15100492,135.42,135.34,20.3612972]
[1767593286219,9.15100492,135.42,135.34,6.6534]
[1767593287119,9.15100492,135.42,135.33,14.13802273]
[1767593287120,87.26,135.41,135.33,14.13802273]
[1767593287422,87.26,135.41,135.33,0.43012553]
[1767593288520,6.6507,135.4,135.33,0.43012553]
[1767593289218,6.6491,135.43,135.35,0.43012553]
[1767593293028,9.14970492,135.45,135.36,0.43012553]
[1767593293219,96.40970492,135.45,135.36,0.43012553]
[1767593293418,89.76120492,135.45,135.36,0.43012553]
[1767593294633,6.6487,135.44,135.36,0.43012553]
[1767593295627,6.6487,135.44,135.36,7.08252553]
[1767593301630,6.6487,135.44,135.37,0.43012553]
[1767593304141,87.26,135.45,135.38,0.43012553]
[1767593304532,0.05002934,135.42,135.38,0.43012553]
[1767593304933,0.05002934,135.42,135.39,0.43012553]
[1767593306136,0.05002934,135.42,135.39,7.08082553]
[1767593310045,0.05002934,135.42,135.39,0.43012553]
[1767593311250,0.05002934,135.42,135.39,7.08102553]
[1767593314450,0.05002934,135.42,135.39,0.43012553]
[1767593315457,0.05002934,135.42,135.35,0.40713846]
[1767593320158,0.05002934,135.42,135.36,0.40713846]
[1767593321760,0.05002934,135.42,135.36,7.05953846]
[1767593324553,0.05002934,135.42,135.37,0.40713846]
[1767593324761,0.05002934,135.42,135.38,0.40713846]
[1767593325657,0.05002934,135.42,135.39,0.40713846]
[1767593325862,0.05002934,135.42,135.36,0.40713846]
[1767593327563,0.05002934,135.42,135.36,7.05933846]
[1767593327764,0.05002934,135.42,135.37,0.40713846]
[1767593334760,0.05002934,135.42,135.35,0.39751193]
[1767593335563,6.69972934,135.42,135.35,0.39751193]
[1767593339175,1.60104645,135.41,135.35,0.39751193]
[1767593347284,0.05002934,135.42,135.36,0.40794134]
[1767593347487,0.05002934,135.42,135.37,0.40794134]
[1767593348187,0.05002934,135.42,135.38,0.40794134]
[1767593352094,1.60104645,135.44,135.39,0.40794134]
[1767593352300,1.60104645,135.44,135.39,0.04680923]
[1767593353403,1.60104645,135.42,135.35,0.40794134]
[1767593354695,1.60104645,135.41,135.35,0.40794134]
[1767593355797,1.60104645,135.41,135.36,0.40794134]
[1767593356194,0.04729605,135.39,135.36,0.40794134]
[1767593358405,8.24954645,135.45,135.38,0.40794134]
[1767593362414,6.6485,135.45,135.38,0.40794134]
[1767593363712,1.60104645,135.42,135.36,13.7078972]
[1767593363914,1.60104645,135.4,135.33,14.11583854]
[1767593364211,1.60104645,135.4,135.34,0.40794134]
[1767593364914,6.6497,135.42,135.34,0.40794134]
[1767593365106,1.60104645,135.41,135.34,0.40794134]
[1767593365508,1.60104645,135.41,135.37,0.0467657]
[1767593365709,6.6497,135.42,135.37,0.0467657]
[1767593365914,8.25074645,135.42,135.37,0.0467657]
[1767593374520,1.60104645,135.42,135.37,0.0467657]
[1767593376824,1.60104645,135.44,135.37,0.0467657]
[1767593377327,1.60104645,135.44,135.36,0.38977097]
[1767593377823,1.60104645,135.44,135.36,6.6522]
[1767593378017,1.60104645,135.44,135.37,0.38977097]
[1767593378728,1.60104645,135.44,135.39,0.04700566]
[1767593380023,8.24984645,135.44,135.39,0.04700566]
[1767593380226,1.60104645,135.44,135.39,0.04700566]
[1767593381523,6.6493,135.43,135.39,0.04700566]
[1767593381829,6.6493,135.43,135.35,7.04267097]
[1767593384136,6.6493,135.43,135.36,0.38977097]
[1767593385832,0.04769858,135.41,135.36,0.38977097]
[1767593389234,0.04769858,135.41,135.37,0.38977097]
[1767593390131,0.04769858,135.41,135.38,0.38977097]
[1767593392030,0.04769858,135.41,135.36,0.37791964]
[1767593394033,0.04769858,135.41,135.37,0.37791964]
[1767593397238,0.04769858,135.41,135.38,0.37791964]
[1767593398834,87.26,135.45,135.38,0.37791964]
[1767593399130,87.26,135.45,135.38,0.43008131]
[1767593401829,93.9083,135.45,135.38,0.43008131]
[1767593426860,93.9083,135.45,135.38,0.05216167]
[1767593427369,2.50048563,135.44,135.38,0.05216167]
[1767593428060,0.05385878,135.42,135.34,0.37091319]
[1767593429268,0.05385878,135.42,135.35,0.37091319]
[1767593429763,6.70365878,135.42,135.35,0.37091319]
[1767593430762,2.55434441,135.42,135.33,0.33231987]
[1767593431168,2.55434441,135.42,135.33,14.04021707]
[1767593431462,2.50048563,135.42,135.33,14.04021707]
[1767593431662,0.04906913,135.39,135.33,14.04021707]
[1767593431866,0.04906913,135.39,135.34,0.33231987]
[1767593432564,0.04906913,135.39,135.35,0.33231987]
[1767593433672,6.6489,135.44,135.37,0.33231987]
[1767593440974,9.14938563,135.44,135.35,20.69301707]
[1767593441577,9.14938563,135.44,135.36,0.33231987]
[1767593448569,9.14938563,135.44,135.39,0.04717029]
[1767593449982,6.6489,135.44,135.39,0.04717029]
[1767593454786,6.6492,135.43,135.39,0.04717029]
[1767593456184,6.6485,135.45,135.39,0.39577521]
[1767593456483,95.50883812,135.45,135.39,0.39577521]
[1767593457479,8.24763812,135.47,135.39,0.39577521]
[1767593457681,87.26,135.47,135.39,0.39577521]
[1767593457890,87.26,135.47,135.4,0.34860492]
[1767593458886,87.26,135.47,135.4,1.94894304]
[1767593459085,87.26,135.47,135.41,0.34860492]
[1767593461486,93.9073,135.47,135.41,0.34860492]
[1767593466402,87.26,135.47,135.41,0.34860492]
[1767593466794,8.24673812,135.49,135.41,0.34860492]
[1767593466994,87.26,135.48,135.41,0.34860492]
[1767593469190,1.60033812,135.47,135.39,0.35120036]
[1767593470600,1.60033812,135.45,135.39,0.35120036]
[1767593470800,1.60033812,135.45,135.37,0.35120036]
[1767593472706,1.60033812,135.45,135.38,0.35120036]
[1767593472901,6.6477,135.46,135.38,0.35120036]
[1767593473101,8.24803812,135.46,135.38,0.35120036]
[1767593476810,8.24803812,135.46,135.37,8.25203812]
[1767593476811,1.60033812,135.44,135.37,6.6517]
[1767593479117,1.60033812,135.44,135.37,7.00290036]
[1767593481622,1.60033812,135.46,135.39,0.35120036]
[1767593482416,1.60033812,135.46,135.4,0.35120036]
[1767593482621,87.24,135.47,135.4,0.35120036]
[1767593483021,1.60033812,135.46,135.4,0.35120036]
[1767593483723,8.24803812,135.46,135.38,7.00240036]
[1767593488726,8.24803812,135.46,135.39,0.35120036]
[1767593497827,1.60033812,135.42,135.35,14.03881212]
[1767593498834,1.60033812,135.42,135.36,0.33091492]
[1767593501039,1.60033812,135.42,135.38,0.05571254]
[1767593501334,0.04949437,135.4,135.34,14.03881212]
[1767593502138,1.64983249,135.4,135.32,0.33091492]
[1767593502539,1.60033812,135.4,135.33,0.33091492]
[1767593502937,0.05465023,135.37,135.33,0.33091492]
[1767593503240,1.60033812,135.4,135.33,0.33091492]
[1767593504239,6.6502,135.41,135.33,0.33091492]
[1767593505033,1.60033812,135.4,135.33,0.33091492]
[1767593506541,1.60033812,135.4,135.34,0.33091492]
[1767593517247,6.6502,135.41,135.34,0.33091492]
[1767593517544,1.60033812,135.41,135.34,0.33091492]
[1767593518649,87.26,135.42,135.34,0.33091492]
[1767593519547,9.15136544,135.43,135.34,0.33091492]
[1767593519748,87.28,135.42,135.34,0.33091492]
[1767593521240,9.15136544,135.43,135.34,0.33091492]
[1767593521443,87.28,135.42,135.34,0.33091492]
[1767593521946,93.9297,135.42,135.34,0.33091492]
[1767593522251,2.50196544,135.41,135.33,6.98678567]
[1767593522850,87.28,135.42,135.34,0.33298567]
[1767593523152,2.50196544,135.44,135.35,0.33298567]
[1767593523350,87.28,135.44,135.35,0.33298567]
[1767593523855,89.78196544,135.44,135.37,0.33298567]
[1767593524946,87.28,135.44,135.38,0.33298567]
[1767593527653,2.50196544,135.48,135.39,6.98388567]
[1767593527851,89.78196544,135.48,135.4,0.33298567]
[1767593529559,96.42876544,135.48,135.4,0.33298567]
[1767593530444,96.42876544,135.48,135.39,6.6509]
[1767593530650,6.6473,135.47,135.39,6.6509]
[1767593532858,6.6473,135.47,135.38,0.33298567]
[1767593538267,6.6478,135.46,135.38,0.33298567]
[1767593551279,6.6478,135.46,135.37,6.6517]
[1767593551578,6.6478,135.46,135.37,6.9719592]
[1767593551785,2.50196544,135.44,135.33,14.0281564]
[1767593551972,87.24,135.43,135.33,0.3202592]
[1767593552479,6.6503,135.41,135.33,0.3202592]
[1767593555377,6.651,135.4,135.33,0.3202592]
[1767593555985,6.651,135.4,135.31,20.6828564]
[1767593556279,6.651,135.4,135.32,0.3202592]
[1767593575300,6.651,135.4,135.32,6.9745592]
[1767593580504,8.25263506,135.4,135.32,6.9745592]
[1767593588114,8.25263506,135.4,135.33,0.33405803]
[1767593595010,1.60163506,135.45,135.35,1.60163506]
[1767593595309,88.88163506,135.45,135.36,0.33405803]
[1767593596014,88.88163506,135.45,135.36,1.93569309]
[1767593596706,6.6487,135.44,135.36,8.58809309]
[1767593599914,6.6487,135.44,135.37,0.33405803]
[1767593607121,1.60163506,135.43,135.37,0.33405803]
[1767593607812,8.25083506,135.43,135.35,1.93569309]
[1767593609327,8.25083506,135.43,135.36,0.33405803]
[1767593611512,87.28,135.45,135.34,0.34193365]
[1767593611513,1.60163506,135.41,135.34,0.34193365]
[1767593612114,6.651,135.4,135.34,0.34193365]
[1767593613417,6.651,135.4,135.32,6.6541]
[1767593613622,6.651,135.4,135.32,6.99603365]
[1767593615122,1.60163506,135.39,135.32,6.99603365]
[1767593618630,1.60163506,135.39,135.34,0.05272428]
[1767593622128,1.60163506,135.41,135.34,0.39465793]
[1767593622522,1.60163506,135.41,135.34,0.34193365]
[1767593628129,6.6499,135.42,135.34,0.34193365]
[1767593628329,8.25153506,135.42,135.34,0.34193365]
[1767593631738,6.6503,135.41,135.34,0.34193365]
[1767593633336,1.60163506,135.42,135.31,20.68172452]
[1767593633337,1.60163506,135.4,135.31,20.68172452]
[1767593633640,1.60163506,135.4,135.31,6.97382732]
[1767593634530,6.6512,135.39,135.31,6.97382732]
[1767593638544,6.6512,135.39,135.31,6.6547]
[1767593638740,6.6512,135.39,135.32,0.31912732]
[1767593644150,103.439,135.42,135.32,0.31912732]
[1767593644340,125.6069,135.44,135.32,0.31912732]
[1767593644341,6.6504,135.41,135.33,0.33902754]
[1767593648658,9.15226817,135.43,135.34,0.33902754]
[1767593651272,9.15226817,135.43,135.34,6.99222754]
[1767593651474,6.6495,135.43,135.35,0.33902754]
[1767593663982,6.6495,135.43,135.36,0.33902754]
[1767593675298,93.9284,135.45,135.37,0.34096143]
[1767593675497,87.28,135.45,135.37,0.34096143]
[1767593676693,87.28,135.45,135.38,0.34096143]
[1767593677902,87.28,135.45,135.36,0.34096143]
[1767593679798,6.6487,135.44,135.36,0.34096143]
[1767593683903,6.6487,135.44,135.36,6.99336143]
[1767593685305,6.6487,135.44,135.37,0.34096143]
[1767593692921,6.6487,135.44,135.39,0.05561477]
[1767593699515,9.15146817,135.44,135.39,0.05561477]
[1767593700818,6.6487,135.44,135.39,0.05561477]
[1767593701427,9.15146817,135.44,135.39,0.05561477]
[1767593701727,2.50276817,135.42,135.33,14.01978694]
[1767593701924,87.26,135.41,135.33,0.31188974]
[1767593702520,1.60183082,135.39,135.33,0.31188974]
[1767593702917,0.05497602,135.38,135.32,13.7078972]
[1767593703116,1.60183082,135.37,135.31,14.01978694]
[1767593704621,1.60183082,135.37,135.31,0.31188974]
[1767593714032,0.05497602,135.38,135.31,0.31188974]
[1767593730236,0.05497602,135.38,135.32,0.31188974]
[1767593730543,1.60183082,135.41,135.33,0.05341809]
[1767593730732,1.60183082,135.41,135.34,0.33306779]
[1767593737244,1.60183082,135.43,135.35,1.93489861]
[1767593737544,1.60183082,135.43,135.36,0.33306779]
[1767593741351,95.55083082,135.44,135.36,0.33306779]
[1767593753550,93.949,135.44,135.36,0.33306779]
[1767593753756,95.55083082,135.44,135.36,0.33306779]
[1767593760564,6.6492,135.43,135.36,0.33306779]
[1767593761451,8.25103082,135.43,135.36,0.33306779]
[1767593762163,6.6492,135.43,135.36,0.33306779]
[1767593763359,6.6484,135.45,135.37,0.30804466]
[1767593764563,6.6484,135.45,135.37,6.95994466]
[1767593765753,87.28,135.46,135.39,0.30804466]
[1767593771169,35.36848292,135.47,135.4,0.30804466]
[1767593771971,35.36848292,135.47,135.41,0.30804466]
[1767593788797,6.6469,135.48,135.41,0.30804466]
[1767593790700,6.6469,135.48,135.41,6.95804466]
[1767593791504,6.6469,135.48,135.41,0.30804466]
[1767593793002,6.6469,135.48,135.39,6.96353468]
[1767593802906,6.6469,135.48,135.4,0.31283468]
[1767593805612,6.6474,135.47,135.4,0.31283468]
[1767593808210,6.6474,135.47,135.4,6.96333468]
[1767593808412,6.6474,135.47,135.41,0.31283468]
[1767593813502,6.6474,135.47,135.39,0.33173955]
[1767593814616,6.6474,135.47,135.39,6.98263955]
[1767593814816,6.6474,135.47,135.4,0.33173955]
[1767593815416,93.9065,135.49,135.41,0.33173955]
[1767593821622,87.26,135.49,135.42,0.33685469]
[1767593822315,89.76108138,135.49,135.4,14.04475189]
[1767593822617,1.5999731,135.47,135.4,14.04475189]
[1767593823621,1.5999731,135.47,135.4,20.69525189]
[1767593825122,93.9063,135.49,135.4,20.69525189]
[1767593825432,1.5999731,135.47,135.4,20.69525189]
[1767593829227,1.5999731,135.47,135.41,0.33685469]
[1767593836032,1.5999731,135.47,135.4,6.6505]
[1767593837225,1.5999731,135.47,135.4,6.98735469]
[1767593838228,8.2467731,135.48,135.41,0.33685469]
[1767593838533,1.5999731,135.48,135.41,6.98675469]
[1767593838734,1.5999731,135.48,135.42,0.33685469]
[1767593839124,87.26,135.49,135.42,0.33685469]
[1767593844738,6.645,135.52,135.43,0.33685469]
[1767593844948,1.5999731,135.51,135.44,0.33685469]
[1767593845824,88.8399731,135.53,135.45,0.33685469]
[1767593846537,88.8399731,135.53,135.45,6.98475469]
[1767593846734,87.24,135.53,135.46,0.33685469]
[1767593846929,6.642,135.58,135.48,0.33685469]
[1767593847134,8.2419731,135.58,135.49,1.93682779]
[1767593847933,8.2419731,135.58,135.49,0.33685469]
[1767593848639,1.5999731,135.57,135.49,6.98265469]
[1767593850944,1.5999731,135.57,135.5,0.31463209]
[1767593853837,190.5535,135.59,135.47,0.31463209]
[1767593854041,190.5535,135.59,135.45,13.7078972]
[1767593854042,1.5999731,135.51,135.45,0.31463209]
[1767593855245,1.5999731,135.5,135.45,0.31463209]
[1767593857238,6.645,135.52,135.45,0.31463209]
[1767593857543,1.5999731,135.5,135.45,0.31463209]
[1767593860938,6.645,135.52,135.45,0.31463209]
[1767593861135,1.5999731,135.5,135.45,0.31463209]
[1767593866161,1.5999731,135.5,135.42,6.6494]
[1767593866356,1.5999731,135.5,135.43,0.31463209]
[1767593868467,1.5999731,135.48,135.45,0.04799805]
[1767593868662,1.5999731,135.46,135.41,0.31463209]
[1767593869568,1.5999731,135.47,135.41,0.31463209]
[1767593870069,0.05338164,135.45,135.41,0.31463209]
[1767593871069,0.05338164,135.45,135.41,6.96453209]
[1767593876871,0.05338164,135.45,135.41,0.31463209]
[1767593896594,6.6464,135.49,135.42,0.3322394]
[1767593898987,105.85808609,135.53,135.43,0.3322394]
[1767593899187,128.02378609,135.55,135.43,0.3322394]
[1767593899395,5.50597139,135.54,135.43,0.3322394]
[1767593899599,93.8839,135.54,135.45,0.3322394]
[1767593903094,6.6445,135.53,135.45,0.3322394]
[1767593911703,190.5904,135.54,135.43,0.32735409]
[1767593912402,2.49938609,135.53,135.43,0.32735409]
[1767593912604,6.6453,135.51,135.43,0.32735409]
[1767593912896,87.22,135.5,135.43,0.32735409]
[1767593926912,87.22,135.5,135.44,0.32735409]
[1767593931317,6.6453,135.51,135.44,0.32735409]
[1767593931516,6.6444,135.53,135.43,0.31889282]
[1767593931718,2.49938609,135.53,135.43,0.31889282]
[1767593932720,6.6454,135.51,135.43,0.31889282]
[1767593933921,6.6445,135.53,135.44,0.31889282]
[1767593934130,93.8645,135.53,135.44,0.31889282]
[1767593934621,96.36388609,135.53,135.44,0.31889282]
[1767593934930,96.36388609,135.53,135.44,6.96729282]
[1767593935130,96.36388609,135.53,135.44,0.31889282]
[1767593938126,93.8645,135.53,135.44,0.31889282]
[1767593938530,93.8645,135.53,135.47,0.05529317]
[1767593940734,93.8645,135.53,135.47,0.37971404]
[1767593941734,6.6435,135.55,135.47,0.37971404]
[1767593941934,93.8635,135.55,135.47,0.37971404]
[1767593942640,93.8635,135.55,135.47,7.02661404]
[1767593943031,87.22,135.55,135.48,0.32442087]
[1767593943841,87.22,135.55,135.5,0.04745333]
[1767593944937,87.22,135.55,135.5,0.3718742]
[1767593946838,6.6413,135.59,135.51,0.32442087]
[1767593947047,88.79791707,135.58,135.51,0.32442087]
[1767593947645,88.79791707,135.58,135.53,0.04705365]
[1767593949444,87.2,135.58,135.53,0.04705365]
[1767593951344,6.6393,135.63,135.55,0.32442087]
[1767593952850,6.6393,135.63,135.58,0.04802376]
[1767593954251,8.23721707,135.63,135.58,0.04802376]
[1767593955152,1.59791707,135.63,135.58,0.04802376]
[1767593956657,1.59791707,135.61,135.58,0.04802376]
[1767593957744,1.59791707,135.61,135.54,0.32442087]
[1767593959846,1.59791707,135.6,135.54,0.32442087]
[1767593960243,0.05295594,135.59,135.54,0.32442087]
[1767593963352,0.05295594,135.59,135.53,6.96842087]
[1767593963553,1.65087301,135.59,135.51,6.96942087]
[1767593966066,0.05295594,135.59,135.51,6.96942087]
[1767593966253,0.05295594,135.59,135.52,0.32442087]
[1767593966453,1.59791707,135.58,135.52,0.32442087]
[1767593966960,1.65087301,135.59,135.52,0.32442087]
[1767593968471,0.05295594,135.59,135.52,0.32442087]
[1767593968662,1.65087301,135.59,135.52,0.32442087]
[1767593975465,1.59791707,135.57,135.5,0.31748437]
[1767593976260,0.05071113,135.55,135.5,0.31748437]
[1767593977779,0.05071113,135.55,135.51,0.31748437]
[1767593978077,87.16,135.59,135.51,0.36701471]
[1767593979683,93.8014,135.59,135.51,0.36701471]
[1767593980079,1.59791707,135.58,135.51,0.36701471]
[1767593981076,1.59791707,135.58,135.51,0.04953034]
[1767593981475,1.59791707,135.56,135.51,0.04953034]
[1767593988190,22.18,135.61,135.52,1.59791707]
[1767593988396,103.2593,135.66,135.58,1.59791707]
[1767593988884,103.2593,135.66,135.56,0.31748437]
[1767593989091,103.2593,135.66,135.61,0.04934779]
[1767593989590,6.639,135.64,135.57,1.59791707]
[1767593989885,6.639,135.64,135.56,0.31748437]
[1767593990089,6.639,135.64,135.57,1.59791707]
[1767593990289,93.799,135.64,135.57,1.59791707]
[1767593990992,0.05446428,135.62,135.57,1.59791707]
[1767593991985,103.2332,135.69,135.58,1.80376329]
[1767593992182,1.59791707,135.67,135.59,0.32376329]
[1767593992382,104.85001707,135.67,135.58,0.05344373]
[1767593992578,104.85001707,135.67,135.57,0.32376329]
[1767593993493,8.23651707,135.65,135.57,0.32376329]
[1767593993690,95.39651707,135.65,135.57,0.32376329]
[1767593994286,95.39651707,135.65,135.55,6.96676329]
[1767593994492,95.39651707,135.65,135.56,0.32376329]
[1767593995392,93.7986,135.65,135.57,1.59791707]
[1767593996995,93.7986,135.65,135.56,1.92168036]
[1767593997291,6.6391,135.64,135.56,1.92168036]
[1767594000495,6.6397,135.63,135.53,6.95924967]
[1767594000794,104.86941707,135.64,135.54,1.91296674]
[1767594001189,104.86941707,135.64,135.55,0.31504967]
[1767594001588,6.64,135.62,135.55,0.31504967]
[1767594002097,87.14,135.61,135.55,0.31504967]
[1767594002297,93.7805,135.61,135.53,0.31504967]
[1767594002599,93.7805,135.61,135.53,1.91296674]
[1767594002898,93.7805,135.61,135.54,0.31504967]
[1767594008098,110.78,135.61,135.5,2.1543693]
[1767594008301,110.78,135.61,135.33,486.5124]
[1767594008302,105.90345747,135.46,135.33,2.49445747]
[1767594008487,2.49445747,135.44,135.33,103.5057]
[1767594008803,87.14,135.45,135.34,105.99385747]
[1767594008996,0.04990529,135.41,135.31,106.01395747]
[1767594009300,0.04990529,135.41,135.33,6.6536]
[1767594009501,2.49445747,135.44,135.33,6.6536]
[1767594010295,2.49445747,135.44,135.34,0.31504967]
[1767594013411,112.56785747,135.44,135.34,0.31504967]
[1767594014098,6.649,135.44,135.34,0.31504967]
[1767594017409,190.5609,135.45,135.35,0.31504967]
[1767594017410,87.14,135.45,135.35,0.31504967]
[1767594019605,87.22,135.46,135.37,0.31504967]
[1767594020607,87.22,135.46,135.38,0.31504967]
[1767594023506,89.71445747,135.46,135.35,6.96794967]
[1767594024099,2.49445747,135.44,135.35,0.31504967]
[1767594025810,9.14335747,135.44,135.35,0.31504967]
[1767594027510,6.6494,135.43,135.35,0.31504967]
[1767594028116,0.04754456,135.4,135.35,0.31504967]
[1767594029416,6.6483,135.45,135.37,0.31504967]
[1767594029814,87.24,135.46,135.37,0.31504967]
[1767594030814,87.24,135.46,135.4,0.04981145]
[1767594032525,87.24,135.46,135.4,0.38627914]
[1767594032922,9.14085747,135.49,135.4,0.38627914]
[1767594033120,96.40085747,135.49,135.4,0.38627914]
[1767594033418,96.40085747,135.49,135.4,0.33646769]
[1767594033621,93.9064,135.49,135.4,0.33646769]
[1767594033921,93.9064,135.49,135.43,0.0483109]
[1767594036925,103.4392,135.42,135.33,0.33646769]
[1767594037128,103.4271,135.44,135.33,0.33646769]
[1767594037129,87.24,135.44,135.33,0.33646769]
[1767594037331,87.24,135.44,135.35,0.33646769]
[1767594038626,93.8888,135.44,135.35,6.98926769]
[1767594039224,103.4397,135.42,135.32,0.33646769]
[1767594039527,105.94185747,135.41,135.32,0.33646769]
[1767594040522,6.6513,135.39,135.32,0.33646769]
[1767594041622,6.6503,135.41,135.32,0.33646769]
[1767594041827,6.6503,135.41,135.33,0.33646769]
[1767594049538,87.26,135.42,135.34,0.33646769]
[1767594049839,87.26,135.44,135.34,0.33646769]
[1767594050431,93.9088,135.44,135.35,6.6528]
[1767594050730,93.9088,135.44,135.36,0.33646769]
[1767594051632,87.26,135.44,135.34,0.31343778]
[1767594052632,6.6498,135.42,135.34,0.31343778]
[1767594058650,6.6498,135.42,135.34,6.96683778]
[1767594060750,6.6498,135.42,135.32,6.97537816]
[1767594060949,6.6503,135.41,135.32,6.97537816]
[1767594064442,103.4434,135.42,135.32,0.32117816]
[1767594064751,1.60207211,135.38,135.32,0.32117816]
[1767594064943,1.60207211,135.38,135.3,6.97627816]
[1767594065453,1.60207211,135.38,135.31,0.32117816]
[1767594066647,6.6513,135.39,135.31,0.32117816]
[1767594066951,8.25337211,135.39,135.31,0.32117816]
[1767594080761,8.25337211,135.39,135.3,6.6551]
[1767594080957,1.60207211,135.37,135.3,6.6551]
[1767594081465,8.25337211,135.39,135.3,6.6551]
[1767594082057,8.25337211,135.39,135.3,6.97627816]
[1767594083564,8.25337211,135.39,135.3,8.57835027]
[1767594083972,6.6513,135.39,135.3,8.57835027]